bitfinex-derivatives/quotes_BTCF0:USTF0_20250609
["timestamp","ask_amount","ask_price","bid_price","bid_amount"]
[1749428401826,0.3413706,105720.0,105710.0,1.14276377]
[1749428402030,0.3413706,105720.0,105710.0,1.14458141]
[1749428402538,0.3413706,105720.0,105710.0,1.40638141]
[1749428402738,0.3413706,105720.0,105710.0,1.58364824]
[1749428403038,0.105,105720.0,105710.0,1.58364824]
[1749428403228,0.2940846,105720.0,105710.0,1.58364824]
[1749428403428,0.2940846,105720.0,105710.0,1.58464824]
[1749428403927,0.2940846,105720.0,105710.0,1.27838556]
[1749428404128,0.41124478,105720.0,105710.0,0.81758556]
[1749428404729,0.2940846,105720.0,105710.0,0.81758556]
[1749428404925,0.77204478,105720.0,105710.0,0.88735001]
[1749428405344,0.77204478,105720.0,105710.0,0.88635001]
[1749428405533,0.77204478,105720.0,105710.0,0.70774222]
[1749428408742,0.6548846,105720.0,105710.0,0.70774222]
[1749428408940,0.2940846,105720.0,105710.0,0.70774222]
[1749428409138,0.6548846,105720.0,105710.0,0.70774222]
[1749428410533,0.77204478,105720.0,105710.0,0.56071094]
[1749428410733,0.77204478,105720.0,105710.0,0.46071094]
[1749428412539,0.77204478,105720.0,105710.0,0.56071094]
[1749428412740,0.99740496,105720.0,105710.0,0.15710357]
[1749428412945,0.99004478,105720.0,105710.0,0.15710357]
[1749428413135,0.99004478,105720.0,105710.0,0.04910357]
[1749428413748,0.99004478,105720.0,105710.0,0.14910357]
[1749428414136,0.99004478,105720.0,105710.0,0.25470357]
[1749428414550,0.99304478,105720.0,105710.0,0.25470357]
[1749428414848,0.99304478,105720.0,105710.0,0.15470357]
[1749428415051,0.99504478,105720.0,105710.0,0.15470357]
[1749428415649,0.99204478,105720.0,105710.0,0.15470357]
[1749428415851,0.99404478,105720.0,105710.0,0.15470357]
[1749428416354,0.99404478,105720.0,105710.0,0.35470357]
[1749428417452,0.99404478,105720.0,105710.0,0.25470357]
[1749428417840,0.99404478,105720.0,105710.0,0.15470357]
[1749428419144,0.99404478,105720.0,105710.0,0.25470357]
[1749428419450,0.99404478,105720.0,105710.0,0.35470357]
[1749428420051,0.99404478,105720.0,105710.0,0.25470357]
[1749428421051,0.99404478,105720.0,105710.0,0.15470357]
[1749428422045,0.99404478,105720.0,105710.0,0.04910357]
[1749428422344,1.11120496,105720.0,105710.0,0.04910357]
[1749428423049,0.99404478,105720.0,105710.0,0.04910357]
[1749428423751,1.11120496,105720.0,105710.0,0.04910357]
[1749428425053,0.99404478,105720.0,105710.0,0.04910357]
[1749428425849,0.88924478,105720.0,105710.0,0.04910357]
[1749428426053,1.2082046,105720.0,105710.0,0.04910357]
[1749428426345,1.2080046,105720.0,105710.0,0.25300357]
[1749428426551,1.32516478,105720.0,105710.0,0.46870357]
[1749428426751,1.32536478,105720.0,105710.0,0.36870357]
[1749428427054,1.32536478,105720.0,105710.0,0.04910357]
[1749428427243,1.43200478,105720.0,105710.0,0.04910357]
[1749428429250,1.43200478,105720.0,105710.0,0.08693357]
[1749428429446,1.54916496,105720.0,105710.0,0.08693357]
[1749428430557,1.54916496,105720.0,105710.0,0.01857717]
[1749428431259,1.55322156,105720.0,105710.0,0.01857717]
[1749428431847,0.1891204,105700.0,105690.0,0.46153128]
[1749428432145,1.21352058,105700.0,105690.0,0.55499963]
[1749428432755,1.21352058,105700.0,105690.0,0.65499963]
[1749428432949,1.21352058,105700.0,105690.0,0.55499963]
[1749428433555,1.21352058,105700.0,105690.0,0.65499963]
[1749428434155,1.21352058,105700.0,105690.0,0.65599963]
[1749428434355,1.21352058,105700.0,105690.0,0.65699963]
[1749428434852,1.21352058,105700.0,105690.0,0.55699963]
[1749428435157,1.2309225,105700.0,105690.0,0.46040568]
[1749428435354,1.5957225,105700.0,105690.0,0.46060568]
[1749428437150,2.0247225,105700.0,105690.0,0.46060568]
[1749428438453,2.0247225,105700.0,105690.0,0.14723128]
[1749428438647,2.63246618,105700.0,105670.0,0.109]
[1749428438853,0.1891741,105670.0,105660.0,0.107708]
[1749428439052,0.0946011,105660.0,105640.0,0.1075]
[1749428439353,0.1892278,105640.0,105630.0,0.22785221]
[1749428439665,0.66729554,105640.0,105630.0,0.03316252]
[1749428439966,0.87488798,105640.0,105630.0,0.03319187]
[1749428440260,0.87488798,105640.0,105630.0,0.03339187]
[1749428440261,0.95215336,105640.0,105630.0,0.03339187]
[1749428440560,1.06424752,105640.0,105630.0,0.01403966]
[1749428440860,1.06424752,105640.0,105620.0,0.71467868]
[1749428440861,0.1892456,105630.0,105620.0,0.71467868]
[1749428441065,0.7364856,105630.0,105620.0,0.21730178]
[1749428441255,0.7364856,105630.0,105620.0,0.19480719]
[1749428441557,0.7364856,105630.0,105620.0,0.19886379]
[1749428441757,0.7364856,105630.0,105620.0,0.21254807]
[1749428441954,0.18309476,105630.0,105620.0,0.76461157]
[1749428442155,0.54736,105630.0,105620.0,0.97422432]
[1749428442361,0.72737966,105630.0,105620.0,0.92302477]
[1749428442561,0.72737966,105630.0,105620.0,0.66229811]
[1749428443055,0.72737966,105630.0,105620.0,0.66219377]
[1749428443359,0.72737966,105630.0,105620.0,0.61488548]
[1749428443761,0.72737966,105630.0,105620.0,0.62934813]
[1749428444552,0.72737966,105630.0,105620.0,0.60107069]
[1749428444752,0.72737966,105630.0,105620.0,0.62909714]
[1749428445050,0.72737966,105630.0,105620.0,0.42627816]
[1749428445358,0.72737966,105630.0,105620.0,0.44005771]
[1749428445957,0.72737966,105630.0,105620.0,0.44008127]
[1749428446260,0.72737966,105630.0,105620.0,0.4400813]
[1749428446464,0.72737966,105630.0,105620.0,0.42650186]
[1749428446660,0.72737966,105630.0,105620.0,0.42560585]
[1749428446967,0.72737966,105630.0,105620.0,0.44010649]
[1749428447259,0.72737966,105630.0,105620.0,0.44009854]
[1749428447964,0.72737966,105630.0,105620.0,0.44019067]
[1749428448165,0.72737966,105630.0,105620.0,0.41200719]
[1749428448362,0.72737966,105630.0,105620.0,0.42649325]
[1749428448558,0.72737966,105630.0,105620.0,0.44018512]
[1749428448767,0.72737966,105630.0,105620.0,0.44017992]
[1749428448953,0.72737966,105630.0,105620.0,0.44026507]
[1749428449358,1.24847921,105630.0,105620.0,0.44026576]
[1749428449561,1.45927921,105630.0,105620.0,0.01892326]
[1749428449760,1.08817966,105630.0,105620.0,0.03279974]
[1749428450058,1.08817966,105630.0,105620.0,0.24037204]
[1749428450059,1.08826569,105630.0,105620.0,0.24037204]
[1749428450260,1.08826569,105630.0,105620.0,0.2121416]
[1749428450464,1.08826569,105630.0,105620.0,0.24057171]
[1749428450666,1.08826569,105630.0,105620.0,0.34056867]
[1749428451073,1.08826569,105630.0,105620.0,0.34056687]
[1749428451874,1.08826569,105630.0,105620.0,0.3121416]
[1749428452073,1.08826569,105630.0,105620.0,0.34061553]
[1749428453570,1.24856524,105630.0,105620.0,0.12354667]
[1749428453775,1.45516524,105630.0,105620.0,0.13815012]
[1749428453972,1.45516524,105630.0,105620.0,0.03285012]
[1749428454167,1.45507921,105630.0,105620.0,0.00498282]
[1749428454569,0.1892816,105610.0,105600.0,0.2062]
[1749428454774,0.18936537,105610.0,105600.0,1.11659905]
[1749428454973,0.29468537,105610.0,105600.0,0.8504736]
[1749428455176,0.29468537,105610.0,105600.0,1.2112736]
[1749428456275,0.29468537,105610.0,105600.0,1.05597405]
[1749428456470,0.29468537,105610.0,105600.0,1.2162736]
[1749428456872,0.28853361,105610.0,105600.0,1.2162736]
[1749428457178,0.10540377,105610.0,105600.0,1.2162736]
[1749428457373,0.09617623,105610.0,105600.0,1.2212736]
[1749428457574,0.28545783,105610.0,105600.0,1.2212736]
[1749428458074,0.5849376,105620.0,105610.0,0.3892816]
[1749428458075,0.2367301,105620.0,105610.0,0.3892816]
[1749428458274,0.3423301,105620.0,105610.0,1.23088115]
[1749428458674,0.3423301,105620.0,105610.0,1.32557363]
[1749428458870,0.2950052,105620.0,105610.0,1.32557363]
[1749428459276,0.2950052,105620.0,105610.0,1.32957363]
[1749428459481,0.2950052,105620.0,105610.0,1.62647363]
[1749428460482,0.2950052,105620.0,105610.0,1.63047363]
[1749428461379,0.77311225,105620.0,105610.0,0.62339248]
[1749428461779,0.6558052,105620.0,105610.0,0.62339248]
[1749428461979,0.6558052,105620.0,105610.0,0.62319248]
[1749428462482,0.7554052,105620.0,105610.0,0.62319248]
[1749428462682,0.8598052,105620.0,105610.0,0.62339248]
[1749428462877,0.97711225,105620.0,105610.0,0.62339248]
[1749428463181,0.97711225,105620.0,105610.0,0.51649248]
[1749428463380,0.97711225,105620.0,105610.0,0.208]
[1749428463677,0.97711225,105620.0,105610.0,0.2082]
[1749428464775,0.8598052,105620.0,105610.0,0.2082]
[1749428465176,0.8598052,105620.0,105610.0,0.31]
[1749428466076,0.8598052,105620.0,105610.0,0.32460447]
[1749428466276,0.8598052,105620.0,105610.0,0.33840648]
[1749428466881,0.97711225,105620.0,105610.0,0.23660828]
[1749428467077,0.97711225,105620.0,105610.0,0.1366083]
[1749428467277,0.96788457,105620.0,105610.0,0.13671267]
[1749428467474,0.96788457,105620.0,105610.0,0.13641303]
[1749428467778,0.96788457,105620.0,105610.0,0.13641391]
[1749428468080,0.96788457,105620.0,105610.0,0.12180759]
[1749428468279,0.96788457,105620.0,105610.0,0.23651552]
[1749428468672,0.96788457,105620.0,105610.0,0.13651552]
[1749428468877,0.96788457,105620.0,105610.0,0.23651552]
[1749428469080,0.96788457,105620.0,105610.0,0.23647412]
[1749428469287,0.96788457,105620.0,105610.0,0.23651225]
[1749428469476,0.96788457,105620.0,105610.0,0.21891303]
[1749428469679,0.85057752,105620.0,105610.0,0.23362326]
[1749428469986,1.29361752,105620.0,105610.0,0.23362326]
[1749428470387,1.29361752,105620.0,105610.0,0.44402326]
[1749428470580,1.29361752,105620.0,105610.0,0.4126]
[1749428470983,1.45365898,105620.0,105610.0,0.1159046]
[1749428471177,1.45365898,105620.0,105610.0,0.1022]
[1749428471382,1.47099815,105620.0,105610.0,0.11600881]
[1749428471579,1.47099815,105620.0,105610.0,0.11600882]
[1749428471898,1.47099815,105620.0,105610.0,0.13043586]
[1749428472189,1.4475066,105620.0,105610.0,0.13063613]
[1749428472391,1.4475066,105620.0,105610.0,0.1304318]
[1749428472594,1.4475066,105620.0,105610.0,0.11598298]
[1749428472783,1.4475066,105620.0,105610.0,0.13060904]
[1749428472985,1.4475066,105620.0,105610.0,0.13060969]
[1749428473185,1.4475066,105620.0,105610.0,0.13060801]
[1749428473582,1.4475066,105620.0,105610.0,0.13060375]
[1749428474088,0.0473242,105610.0,105590.0,0.0001416]
[1749428474279,0.9479795,105600.0,105590.0,0.1001416]
[1749428474481,1.24471391,105600.0,105590.0,0.11951949]
[1749428474785,1.24471391,105600.0,105590.0,0.11971949]
[1749428474985,1.24471391,105600.0,105590.0,0.42441949]
[1749428475379,1.24471391,105600.0,105590.0,0.42841949]
[1749428475380,0.23203391,105600.0,105590.0,0.42841949]
[1749428475585,0.7386995,105600.0,105590.0,0.64042799]
[1749428475786,0.7386995,105600.0,105590.0,0.75839567]
[1749428475987,0.7386995,105600.0,105590.0,0.64108862]
[1749428476179,0.7386995,105600.0,105590.0,0.63708862]
[1749428476382,0.7386995,105600.0,105590.0,0.64108862]
[1749428476589,0.2949395,105600.0,105590.0,1.30851307]
[1749428476785,0.2949395,105600.0,105590.0,1.45897836]
[1749428477694,0.2949395,105600.0,105590.0,1.34101068]
[1749428478986,0.1892995,105600.0,105590.0,1.38919759]
[1749428479181,0.10564,105600.0,105590.0,1.83633065]
[1749428479395,0.2949395,105600.0,105590.0,1.83633065]
[1749428480088,0.2949395,105600.0,105590.0,1.79306025]
[1749428481690,0.0946352,105620.0,105600.0,0.0946444]
[1749428481994,0.0946352,105620.0,105610.0,1.58218642]
[1749428481995,0.389552,105620.0,105610.0,1.58218642]
[1749428482188,0.389552,105620.0,105610.0,1.68218642]
[1749428482387,0.389552,105620.0,105610.0,1.6821466]
[1749428482587,0.389552,105620.0,105610.0,1.53468855]
[1749428482800,0.283912,105620.0,105610.0,1.53468855]
[1749428483091,0.389552,105620.0,105610.0,1.92915413]
[1749428483387,0.389552,105620.0,105610.0,2.03015413]
[1749428484385,0.3422334,105620.0,105610.0,2.03015413]
[1749428484790,0.3422334,105620.0,105610.0,2.03115413]
[1749428484992,0.3422334,105620.0,105610.0,1.91384708]
[1749428485187,0.3422334,105620.0,105610.0,1.26908558]
[1749428485386,0.3422334,105620.0,105610.0,0.99776718]
[1749428485787,0.3422334,105620.0,105610.0,1.35856718]
[1749428486297,0.3422334,105620.0,105610.0,1.37300496]
[1749428486496,0.3422334,105620.0,105610.0,1.49031201]
[1749428486896,0.3422334,105620.0,105610.0,1.49031127]
[1749428487083,0.3422334,105620.0,105610.0,1.49031126]
[1749428487396,0.3422334,105620.0,105610.0,1.37300431]
[1749428487697,0.3422334,105620.0,105610.0,1.37300231]
[1749428488196,0.3422334,105620.0,105610.0,1.37300232]
[1749428488393,0.10564,105620.0,105610.0,1.5333363]
[1749428488699,0.3907879,105630.0,105620.0,0.1892636]
[1749428488898,0.3907879,105630.0,105620.0,1.50142711]
[1749428489096,0.3907879,105630.0,105620.0,1.35411754]
[1749428489396,0.3907879,105630.0,105620.0,1.43436685]
[1749428489600,0.3907879,105630.0,105620.0,1.44871378]
[1749428489994,0.3907879,105630.0,105620.0,1.44871375]
[1749428490501,0.3917879,105630.0,105620.0,1.44871375]
[1749428490800,0.3917879,105630.0,105620.0,1.28837114]
[1749428491000,0.3927879,105630.0,105620.0,1.28837114]
[1749428491201,0.3927879,105630.0,105620.0,1.28837124]
[1749428492200,0.2981602,105630.0,105620.0,1.43436685]
[1749428492595,0.2981602,105630.0,105620.0,1.44870459]
[1749428492795,0.2981602,105630.0,105620.0,1.44870439]
[1749428492997,0.2981602,105630.0,105620.0,1.44870438]
[1749428493193,0.1089016,105630.0,105620.0,1.44870241]
[1749428493396,0.2981473,105630.0,105620.0,1.98813441]
[1749428493698,0.2961473,105630.0,105620.0,2.07698971]
[1749428493904,0.1069016,105630.0,105620.0,2.72388971]
[1749428494099,0.1069016,105630.0,105620.0,2.72388527]
[1749428494100,0.2961473,105630.0,105620.0,2.72388527]
[1749428494302,0.2961473,105630.0,105620.0,2.7238852]
[1749428495103,0.2961473,105630.0,105620.0,2.47378892]
[1749428496204,0.2961473,105630.0,105620.0,2.47784552]
[1749428496699,0.2961473,105630.0,105620.0,2.46361128]
[1749428496904,0.2961473,105630.0,105620.0,1.8585173]
[1749428497207,0.2961473,105630.0,105620.0,1.6454185]
[1749428497395,0.2961473,105630.0,105620.0,2.0898185]
[1749428497595,0.2961473,105630.0,105620.0,2.0754901]
[1749428498105,0.2961473,105630.0,105620.0,2.0755301]
[1749428498495,0.2961473,105630.0,105620.0,2.22260118]
[1749428498806,0.2961473,105630.0,105620.0,1.77816118]
[1749428499198,0.2961473,105630.0,105620.0,2.0623072]
[1749428499598,0.2961473,105630.0,105620.0,2.0625072]
[1749428501004,0.2961473,105630.0,105620.0,1.6180272]
[1749428501192,0.2961473,105630.0,105620.0,1.6139706]
[1749428501394,0.2961473,105630.0,105620.0,1.6137706]
[1749428501600,0.2961473,105630.0,105620.0,1.6139706]
[1749428502302,0.2961473,105630.0,105620.0,1.6180272]
[1749428502908,0.2961473,105630.0,105620.0,1.26735612]
[1749428503102,0.6045473,105630.0,105620.0,1.18404019]
[1749428503406,0.6045473,105630.0,105620.0,1.37330379]
[1749428503799,0.6045473,105630.0,105620.0,1.07640379]
[1749428504107,0.6055473,105630.0,105620.0,0.71460379]
[1749428504498,0.6055473,105630.0,105620.0,0.52534019]
[1749428504703,0.6055473,105630.0,105620.0,0.72880881]
[1749428505104,0.6065473,105630.0,105620.0,0.71360379]
[1749428505304,1.57192128,105630.0,105620.0,0.58551583]
[1749428505509,1.57192128,105630.0,105620.0,0.37936816]
[1749428505703,1.57192128,105630.0,105620.0,0.37958016]
[1749428506103,1.21112128,105630.0,105620.0,0.37958016]
[1749428506301,1.4115873,105630.0,105620.0,0.37958016]
[1749428506506,1.0507873,105630.0,105620.0,0.37958016]
[1749428506806,1.0507873,105630.0,105620.0,1.08997774]
[1749428507007,0.7423873,105630.0,105620.0,1.04280733]
[1749428507206,0.2981473,105630.0,105620.0,1.55043777]
[1749428507514,0.1089016,105630.0,105620.0,1.56467516]
[1749428507710,0.2981473,105630.0,105620.0,1.56467505]
[1749428507909,0.2981473,105630.0,105620.0,1.56467502]
[1749428508114,0.2981473,105630.0,105620.0,1.55043777]
[1749428508408,0.2981473,105630.0,105620.0,1.39010379]
[1749428508605,0.2961473,105630.0,105620.0,1.56568006]
[1749428508806,0.2961473,105630.0,105620.0,1.56681376]
[1749428509009,0.2961473,105630.0,105620.0,1.21722755]
[1749428509409,0.4999473,105630.0,105620.0,1.30223455]
[1749428509616,0.4999473,105630.0,105620.0,1.59933455]
[1749428510008,0.4999473,105630.0,105620.0,1.20412328]
[1749428510209,0.6083473,105630.0,105620.0,1.20412328]
[1749428510404,0.6083473,105630.0,105620.0,1.39350637]
[1749428510617,0.4999473,105630.0,105620.0,1.54102972]
[1749428510920,0.4999473,105630.0,105620.0,1.35176612]
[1749428511124,0.4999473,105630.0,105620.0,1.33725925]
[1749428511309,0.4999473,105630.0,105620.0,1.35177678]
[1749428511617,0.4999473,105630.0,105620.0,1.54104038]
[1749428512015,0.4999473,105630.0,105620.0,1.54103542]
[1749428512413,0.4999473,105630.0,105620.0,1.54509202]
[1749428512614,0.4999473,105630.0,105620.0,1.53057945]
[1749428512815,0.3963473,105630.0,105620.0,1.54509202]
[1749428513013,0.2961473,105630.0,105620.0,1.54509202]
[1749428513311,0.2961473,105630.0,105620.0,1.705426]
[1749428513507,0.2961473,105630.0,105620.0,1.65790267]
[1749428514508,0.34848938,105640.0,105630.0,0.1892457]
[1749428514713,0.3906206,105640.0,105630.0,1.42328143]
[1749428515117,0.3906206,105640.0,105630.0,1.96199598]
[1749428515416,0.3906206,105640.0,105630.0,2.03858153]
[1749428515617,0.3906206,105640.0,105630.0,1.43420755]
[1749428516124,0.3916206,105640.0,105630.0,1.59454153]
[1749428516321,0.3916206,105640.0,105630.0,1.58009419]
[1749428516714,0.3926206,105640.0,105630.0,1.59454204]
[1749428517422,0.3916206,105640.0,105630.0,1.59554204]
[1749428517622,0.2970022,105640.0,105630.0,1.59554204]
[1749428517825,0.001,105640.0,105630.0,2.09903099]
[1749428518119,0.3433902,105650.0,105640.0,0.40865672]
[1749428518320,0.3433902,105650.0,105640.0,1.55123708]
[1749428518718,0.3433902,105650.0,105640.0,1.64589371]
[1749428519421,0.3433902,105650.0,105640.0,1.63144649]
[1749428519618,0.3433902,105650.0,105640.0,1.48544701]
[1749428519926,0.3433902,105650.0,105640.0,1.48644715]
[1749428520127,0.3433902,105650.0,105640.0,1.47211251]
[1749428520922,0.3433902,105650.0,105640.0,1.48644653]
[1749428521118,0.3433902,105650.0,105640.0,1.28288471]
[1749428521325,0.3433902,105650.0,105640.0,1.48664086]
[1749428521517,0.3433902,105650.0,105640.0,1.76921251]
[1749428521826,0.3433902,105650.0,105640.0,1.76901251]
[1749428522124,0.3433902,105650.0,105640.0,1.78354048]
[1749428522720,0.3433902,105650.0,105640.0,1.78395251]
[1749428522924,0.3433902,105650.0,105640.0,1.79828046]
[1749428523126,0.3433902,105650.0,105640.0,1.78395251]
[1749428524827,0.3433902,105650.0,105640.0,1.94428649]
[1749428526113,0.3433902,105650.0,105640.0,1.78395251]
[1749428526313,0.3433902,105650.0,105640.0,1.03142471]
[1749428526518,0.6546902,105650.0,105640.0,1.02812753]
[1749428526724,1.0154902,105650.0,105640.0,0.73322837]
[1749428526923,0.6546902,105650.0,105640.0,0.73302837]
[1749428527129,1.0154902,105650.0,105640.0,0.73322837]
[1749428527325,1.13274203,105650.0,105640.0,0.43632837]
[1749428527626,0.77194203,105650.0,105640.0,0.43632837]
[1749428527828,0.77594203,105650.0,105640.0,0.22902555]
[1749428528225,1.13674203,105650.0,105640.0,0.44956878]
[1749428528421,1.13674203,105650.0,105640.0,0.44936885]
[1749428528729,0.77594203,105650.0,105640.0,0.43532837]
[1749428528923,1.13674203,105650.0,105640.0,0.44957741]
[1749428529128,0.77594203,105650.0,105640.0,0.44957741]
[1749428529430,1.0194902,105650.0,105640.0,0.43532837]
[1749428529826,1.0194902,105650.0,105640.0,0.4495776]
[1749428530032,1.0194902,105650.0,105640.0,0.44957761]
[1749428530225,1.0194902,105650.0,105640.0,0.43532837]
[1749428530537,1.179798,105650.0,105640.0,0.50227446]
[1749428530835,1.179798,105650.0,105640.0,0.2998272]
[1749428531031,1.179798,105650.0,105640.0,0.18557896]
[1749428531236,1.179798,105650.0,105640.0,0.30002726]
[1749428531629,1.179798,105650.0,105640.0,0.30002752]
[1749428531828,1.179798,105650.0,105640.0,0.28172236]
[1749428532237,1.179798,105650.0,105640.0,0.19597092]
[1749428532530,1.179798,105650.0,105640.0,0.28152236]
[1749428532736,1.179798,105650.0,105640.0,0.19597084]
[1749428532927,1.179798,105650.0,105640.0,0.29596783]
[1749428533128,1.524454,105650.0,105640.0,0.16650964]
[1749428533435,1.524454,105650.0,105640.0,0.16631008]
[1749428533738,1.524454,105650.0,105640.0,0.26651014]
[1749428533739,1.4643302,105650.0,105640.0,0.26651014]
[1749428533937,1.4643302,105650.0,105640.0,0.26650997]
[1749428534234,1.624638,105650.0,105640.0,0.35266417]
[1749428534830,1.4643302,105650.0,105640.0,0.37107007]
[1749428535036,1.4643302,105650.0,105640.0,0.35672077]
[1749428535535,1.1035302,105650.0,105640.0,0.35672077]
[1749428535743,0.9127702,105650.0,105640.0,0.50407421]
[1749428535936,0.9955302,105650.0,105640.0,0.44098215]
[1749428536128,0.9955302,105650.0,105640.0,0.58833559]
[1749428536437,0.9955302,105650.0,105640.0,0.44098215]
[1749428536637,0.9955302,105650.0,105640.0,0.58833559]
[1749428537543,0.7924702,105650.0,105640.0,0.93787129]
[1749428537747,0.7924702,105650.0,105640.0,0.83651287]
[1749428538438,0.7924702,105650.0,105640.0,1.19731287]
[1749428538944,0.7904702,105650.0,105640.0,0.83751287]
[1749428540039,0.7904702,105650.0,105640.0,1.19831287]
[1749428540636,0.7884702,105650.0,105640.0,1.19731287]
[1749428540838,0.7894702,105650.0,105640.0,1.19731287]
[1749428543653,0.7894702,105650.0,105640.0,0.64728497]
[1749428543853,0.7894702,105650.0,105640.0,0.64322837]
[1749428544344,0.8910702,105650.0,105640.0,1.19325627]
[1749428544548,0.8910702,105650.0,105640.0,0.83245627]
[1749428544849,0.7894702,105650.0,105640.0,1.19731287]
[1749428545051,0.7894702,105650.0,105640.0,1.19711287]
[1749428545349,0.7894702,105650.0,105640.0,1.19731287]
[1749428546749,0.7894702,105650.0,105640.0,0.83651287]
[1749428546960,0.7894702,105650.0,105640.0,0.83245627]
[1749428547345,0.7894702,105650.0,105640.0,0.64322837]
[1749428548049,0.8919702,105650.0,105640.0,0.64322837]
[1749428548563,1.3569702,105650.0,105640.0,0.64322837]
[1749428548855,0.9961702,105650.0,105640.0,0.64322837]
[1749428549247,1.1134154,105650.0,105640.0,0.64322837]
[1749428549455,1.4742154,105650.0,105640.0,0.64322837]
[1749428550351,1.4742154,105650.0,105640.0,0.53572837]
[1749428550557,1.49143665,105650.0,105640.0,0.43532837]
[1749428550854,1.49143665,105650.0,105640.0,0.24047174]
[1749428551056,1.49143665,105650.0,105640.0,0.38822543]
[1749428551648,1.49143665,105650.0,105640.0,0.18192261]
[1749428553853,1.49143665,105650.0,105640.0,0.18172261]
[1749428554053,1.49143665,105650.0,105640.0,0.18597921]
[1749428555157,1.04623665,105650.0,105640.0,0.18597921]
[1749428555357,1.49679665,105650.0,105640.0,0.18597921]
[1749428555861,1.49679665,105650.0,105640.0,0.28597921]
[1749428556055,0.92899145,105650.0,105640.0,0.28597921]
[1749428556257,1.37947145,105650.0,105640.0,0.38063584]
[1749428556460,1.37947145,105650.0,105640.0,0.68333584]
[1749428556960,1.49671665,105650.0,105640.0,0.68333584]
[1749428557656,1.37947145,105650.0,105640.0,0.68333584]
[1749428557852,1.49671665,105650.0,105640.0,0.68333584]
[1749428558047,1.39251665,105650.0,105640.0,0.68333584]
[1749428558253,1.17277145,105650.0,105640.0,0.68333584]
[1749428558661,0.81197145,105650.0,105640.0,0.68333584]
[1749428559267,0.36533145,105650.0,105640.0,1.23336374]
[1749428559462,0.36533145,105650.0,105640.0,0.85933017]
[1749428559463,0.81529145,105650.0,105640.0,0.85933017]
[1749428559653,0.81529145,105650.0,105640.0,0.74208497]
[1749428560161,0.81529145,105650.0,105640.0,0.93131287]
[1749428560360,0.81529145,105650.0,105640.0,1.29211287]
[1749428561054,0.81529145,105650.0,105640.0,1.10288497]
[1749428561560,0.81529145,105650.0,105640.0,1.10298497]
[1749428562060,0.81529145,105650.0,105640.0,0.74218497]
[1749428566268,0.7495902,105650.0,105640.0,0.74218497]
[1749428566469,0.7968965,105650.0,105640.0,0.74218497]
[1749428567469,0.9141417,105650.0,105640.0,0.74218497]
[1749428567667,1.2161417,105650.0,105640.0,0.64348497]
[1749428569069,1.5769417,105650.0,105640.0,0.43948497]
[1749428569271,1.5769417,105650.0,105640.0,0.39247872]
[1749428569470,1.5769417,105650.0,105640.0,0.1859759]
[1749428569666,1.5769417,105650.0,105640.0,0.1861759]
[1749428571471,1.5769417,105650.0,105640.0,0.1860759]
[1749428572370,1.5769417,105650.0,105640.0,0.2860759]
[1749428572671,1.1269817,105650.0,105640.0,0.2860759]
[1749428572866,1.2139017,105650.0,105640.0,0.2860759]
[1749428573067,1.5747017,105650.0,105640.0,0.2860759]
[1749428573266,1.2139017,105650.0,105640.0,0.2860759]
[1749428573466,0.7945765,105650.0,105640.0,0.48433253]
[1749428573671,0.7945765,105650.0,105640.0,0.65882809]
[1749428573970,0.7945765,105650.0,105640.0,0.64448497]
[1749428574371,0.7945765,105650.0,105640.0,0.60605945]
[1749428574770,0.7945765,105650.0,105640.0,0.62040871]
[1749428575163,0.7945765,105650.0,105640.0,0.60605945]
[1749428575364,0.7945765,105650.0,105640.0,0.62446531]
[1749428575563,0.7945765,105650.0,105640.0,0.61011605]
[1749428575767,0.7945765,105650.0,105640.0,0.62446527]
[1749428575966,0.7945765,105650.0,105640.0,0.62446686]
[1749428576161,0.7945765,105650.0,105640.0,0.62446685]
[1749428576470,0.7945765,105650.0,105640.0,0.61011605]
[1749428576860,0.2364965,105650.0,105640.0,0.61011605]
[1749428577171,0.7942165,105650.0,105640.0,1.2331082]
[1749428577368,0.7942165,105650.0,105640.0,1.27737265]
[1749428577773,0.7942165,105650.0,105640.0,1.02258983]
[1749428577974,0.7942165,105650.0,105640.0,0.90534463]
[1749428578272,0.7942165,105650.0,105640.0,0.91969481]
[1749428578571,0.7942165,105650.0,105640.0,1.01969481]
[1749428578771,0.7932165,105650.0,105640.0,1.00634463]
[1749428578968,0.2986302,105650.0,105640.0,1.31575305]
[1749428579174,0.11044,105660.0,105650.0,0.2837714]
[1749428579371,0.11044,105660.0,105650.0,1.209914]
[1749428579770,0.2995979,105670.0,105660.0,0.2837592]
[1749428579973,0.2995979,105670.0,105660.0,1.39648741]
[1749428580167,0.2995979,105670.0,105660.0,1.18465881]
[1749428580367,0.2995979,105670.0,105660.0,1.57440572]
[1749428580570,0.2995979,105670.0,105660.0,1.57440568]
[1749428581075,0.2995979,105670.0,105660.0,1.78134879]
[1749428581374,0.2995979,105670.0,105660.0,1.79665071]
[1749428581572,0.2995979,105670.0,105660.0,1.78234879]
[1749428582078,0.2995979,105670.0,105660.0,1.79665071]
[1749428582675,0.11044,105670.0,105660.0,1.30759483]
[1749428582870,0.0002,105680.0,105670.0,0.1891582]
[1749428583070,0.20617599,105690.0,105680.0,0.1891403]
[1749428583071,0.10824,105690.0,105680.0,0.1891403]
[1749428583268,0.2973624,105690.0,105680.0,1.38178465]
[1749428583473,0.2973624,105690.0,105680.0,1.46212337]
[1749428583670,0.2975624,105690.0,105680.0,1.47642311]
[1749428583877,0.30723604,105690.0,105680.0,1.15573787]
[1749428584182,0.2975624,105690.0,105680.0,1.04977901]
[1749428584379,0.2975624,105690.0,105680.0,1.37305295]
[1749428584876,0.2975624,105690.0,105680.0,1.25580775]
[1749428585077,0.2975624,105690.0,105680.0,1.37305295]
[1749428585277,0.2995624,105690.0,105680.0,1.18391265]
[1749428585479,0.3015624,105690.0,105680.0,1.06666745]
[1749428585668,0.4188076,105690.0,105680.0,1.06666745]
[1749428585874,0.6294076,105690.0,105680.0,0.90777163]
[1749428586483,0.6294076,105690.0,105680.0,1.09671183]
[1749428586783,0.5227076,105690.0,105680.0,1.09691183]
[1749428586984,0.4054624,105690.0,105680.0,1.09691183]
[1749428587784,0.41499966,105690.0,105680.0,1.09691183]
[1749428588480,0.31109966,105690.0,105680.0,1.09691183]
[1749428588877,0.3015624,105690.0,105680.0,1.21415703]
[1749428589185,0.3015624,105690.0,105680.0,1.31415703]
[1749428589978,0.0042,105690.0,105680.0,1.31415703]
[1749428590378,0.1931223,105690.0,105680.0,1.31415703]
[1749428590589,0.1933223,105690.0,105680.0,1.31415703]
[1749428590888,0.1931223,105690.0,105680.0,1.31415703]
[1749428591078,0.1933223,105690.0,105680.0,1.31415703]
[1749428592488,0.1933223,105690.0,105680.0,1.61105703]
[1749428592979,0.0042,105690.0,105680.0,1.61105703]
[1749428593189,0.1933223,105690.0,105680.0,1.81688577]
[1749428593389,0.1931223,105690.0,105680.0,1.66995285]
[1749428593577,0.0042,105690.0,105680.0,1.66995285]
[1749428593783,0.3918764,105700.0,105690.0,0.1891223]
[1749428593784,0.2973187,105700.0,105690.0,0.1891223]
[1749428594081,0.2975187,105700.0,105690.0,2.30949339]